bitfinex-derivatives/quotes_ETHF0:USTF0_20240910
["timestamp","ask_amount","ask_price","bid_price","bid_amount"]
[1725972518151,1.10957969,2357.6,2357.5,0.42415]
[1725972518343,1.50967969,2357.7,2357.6,0.42413]
[1725972518741,0.4001,2357.7,2357.6,0.42413]
[1725972518949,0.4001,2357.7,2357.6,1.08701192]
[1725972519454,0.4001,2357.7,2357.6,0.42413]
[1725972519651,0.4001,2357.7,2357.4,2.65]
[1725972519854,1.50967969,2357.7,2357.5,0.42414]
[1725972520054,1.93380969,2357.7,2357.4,0.42416]
[1725972520256,0.42417,2357.5,2357.2,40.8]
[1725972520557,0.3731,2357.4,2357.2,41.2242]
[1725972520759,0.7701,2357.4,2357.2,41.2242]
[1725972520958,1.87967969,2357.4,2357.3,0.42419]
[1725972521156,0.7701,2357.4,2357.3,0.42419]
[1725972521349,0.7701,2357.4,2357.2,40.8]
[1725972521553,0.7701,2357.4,2357.2,41.22419]
[1725972521851,1.87967969,2357.4,2357.2,41.22419]
[1725972522359,0.7701,2357.4,2357.2,41.2242]
[1725972522748,0.7701,2357.4,2357.2,40.8]
[1725972522954,1.87967969,2357.4,2357.1,0.42421]
[1725972523165,1.87967969,2357.4,2357.0,0.42423]
[1725972523166,0.42419,2357.3,2357.0,0.42423]
[1725972523352,0.3691,2357.2,2357.1,0.42422]
[1725972525956,0.3691,2357.2,2357.0,40.8]
[1725972526154,0.3691,2357.2,2357.1,0.42422]
[1725972527062,0.3691,2357.2,2357.1,3.07422]
[1725972527756,0.3691,2357.2,2357.1,0.42422]
[1725972529050,1.10957969,2357.7,2357.2,1.06052]
[1725972529255,0.3988,2357.8,2357.7,0.42412]
[1725972529454,0.3988,2357.8,2357.7,3.07412]
[1725972529660,0.3988,2357.8,2357.7,7.31572]
[1725972530465,0.3988,2357.8,2357.7,4.66572]
[1725972530661,0.3988,2357.8,2357.6,0.42412]
[1725972530865,0.7729,2357.8,2357.3,2.65]
[1725972531353,0.7729,2357.8,2357.7,0.42412]
[1725972531558,0.7729,2357.8,2357.6,0.42412]
[1725972531958,1.197,2357.8,2357.4,0.42416]
[1725972532155,0.42412,2357.7,2357.4,0.42416]
[1725972532356,2.30658969,2357.8,2357.4,0.42416]
[1725972532556,0.42413,2357.7,2357.1,6.732]
[1725972532757,1.88247969,2357.8,2357.1,2.65]
[1725972532758,0.42413,2357.6,2357.1,2.65]
[1725972532957,0.42413,2357.7,2357.3,0.42417]
[1725972533169,4.53247969,2357.8,2357.3,0.42418]
[1725972533361,0.42414,2357.6,2357.3,0.42418]
[1725972533668,4.53247969,2357.8,2357.1,2.65]
[1725972533857,0.42413,2357.7,2357.1,2.65]
[1725972534362,0.42414,2357.6,2357.1,2.65]
[1725972534862,0.3973,2357.5,2357.3,0.42419]
[1725972535468,0.82145,2357.5,2357.2,0.4242]
[1725972535668,0.3973,2357.5,2357.2,0.4242]
[1725972535869,0.82145,2357.5,2357.2,0.4242]
[1725972536169,1.197,2357.8,2357.5,0.42414]
[1725972536465,0.3783,2357.7,2357.5,0.42414]
[1725972537061,0.42414,2357.6,2357.3,0.42418]
[1725972537870,0.80243,2357.7,2357.1,2.65]
[1725972538063,0.42413,2357.6,2357.3,0.42418]
[1725972539476,0.42413,2357.6,2357.1,2.65]
[1725972539673,0.42415,2357.5,2357.2,0.42419]
[1725972540261,1.53372969,2357.6,2357.3,0.42418]
[1725972540468,0.42415,2357.5,2357.3,0.42418]
[1725972540873,0.42419,2357.4,2357.0,40.8]
[1725972541188,1.06039,2357.5,2357.1,0.42422]
[1725972541189,1.1688,2357.3,2357.1,0.42422]
[1725972541474,1.1493,2357.3,2356.6,2.65]
[1725972541771,2.25887969,2357.3,2356.7,2.65]
[1725972541973,2.25887969,2357.3,2357.2,0.42421]
[1725972541974,1.1493,2357.3,2357.2,0.42421]
[1725972542362,0.7844,2357.3,2357.2,0.42421]
[1725972542565,0.3797,2357.3,2357.2,0.42421]
[1725972542974,0.3797,2357.3,2357.1,0.42421]
[1725972543171,0.3744,2357.2,2356.8,43.45]
[1725972543371,0.3787,2357.1,2356.9,0.42425]
[1725972543568,0.80293,2357.1,2356.8,41.22426]
[1725972543877,0.42425,2357.0,2356.7,0.42428]
[1725972544073,0.3787,2357.1,2356.6,2.65]
[1725972544381,0.80293,2357.1,2356.8,0.42427]
[1725972545571,0.80293,2357.1,2356.9,0.42426]
[1725972545773,0.80293,2357.1,2356.7,40.8]
[1725972545973,0.80293,2357.1,2356.8,0.42427]
[1725972546174,0.3787,2357.1,2356.7,40.8]
[1725972546873,0.42425,2357.0,2356.7,41.22429]
[1725972548379,0.42425,2357.0,2356.8,0.42428]
[1725972548770,0.42425,2357.0,2356.6,40.8]
[1725972548771,0.42425,2357.0,2356.7,0.42428]
[1725972549169,0.42426,2356.9,2356.7,0.42428]
[1725972549370,0.82378,2356.8,2356.4,2.65]
[1725972549566,0.3756,2356.7,2356.6,0.42431]
[1725972549780,0.7999,2356.7,2356.5,0.42432]
[1725972550078,3.0256,2356.7,2356.2,4.082]
[1725972550279,3.0256,2356.7,2356.2,2.65]
[1725972550280,0.3794,2356.6,2356.2,2.65]
[1725972550482,0.3794,2356.6,2356.4,0.42434]
[1725972550683,0.42434,2356.5,2356.0,2.65]
[1725972550983,0.42435,2356.5,2356.0,2.65]
[1725972551288,0.42435,2356.5,2355.8,5.14314]
[1725972551289,0.42437,2356.3,2355.8,44.882]
[1725972551483,0.3951,2356.2,2356.0,0.42442]
[1725972551678,0.3951,2356.2,2356.0,0.42441]
[1725972551679,0.7885,2356.2,2356.0,0.42441]
[1725972551874,0.7885,2356.2,2356.1,0.4244]
[1725972552485,4.13897969,2356.6,2356.1,6.894]
[1725972552486,0.3794,2356.6,2356.1,6.894]
[1725972552682,0.3951,2356.5,2356.2,0.42439]
[1725972552881,0.3951,2356.5,2356.4,0.42435]
[1725972553083,0.3951,2356.5,2356.3,3.07435]
[1725972553479,0.3951,2356.5,2356.4,0.42435]
[1725972553682,0.3951,2356.5,2356.3,3.07436]
[1725972553986,0.3951,2356.5,2356.3,3.07435]
[1725972554284,0.3951,2356.5,2356.4,0.42435]
[1725972554483,0.3951,2356.5,2356.3,3.07436]
[1725972554684,0.3951,2356.5,2356.4,0.42435]
[1725972554983,0.3951,2356.5,2356.3,2.65]
[1725972555194,0.3951,2356.5,2356.3,3.07436]
[1725972555486,0.3951,2356.5,2356.3,0.42437]
[1725972556680,0.3951,2356.5,2356.1,2.65]
[1725972556880,0.3951,2356.5,2356.4,0.42435]
[1725972557087,5.83842277,2356.9,2356.6,0.4243]
[1725972557088,5.28257969,2356.9,2356.6,0.4243]
[1725972557293,5.28257969,2356.9,2356.3,2.65]
[1725972557294,0.3874,2356.8,2356.7,0.4243]
[1725972558186,0.3874,2356.8,2356.7,4.6675]
[1725972558381,1.10957969,2357.2,2356.9,0.42426]
[1725972558382,0.3874,2357.1,2356.9,0.42426]
[1725972558578,0.3874,2357.1,2356.9,0.42424]
[1725972558788,0.3874,2357.1,2356.7,2.65]
[1725972558789,0.3874,2357.1,2357.0,0.42424]
[1725972558986,0.3874,2357.1,2357.0,41.22424]
[1725972559188,1.10957969,2357.5,2357.0,47.6924]
[1725972559393,0.3682,2357.4,2357.3,0.42418]
[1725972559891,1.47757969,2357.7,2357.3,0.42418]
[1725972560091,1.47757969,2357.7,2357.2,2.65]
[1725972560092,0.368,2357.7,2357.6,0.42413]
[1725972560491,0.7572,2357.8,2357.6,0.42413]
[1725972560680,0.7572,2357.8,2357.5,0.42414]
[1725972560881,1.86677969,2357.8,2357.5,0.42414]
[1725972561082,1.86677969,2357.8,2357.5,0.42415]
[1725972563794,1.86677969,2357.8,2357.3,2.65]
[1725972563795,1.86677969,2357.8,2357.4,0.42416]
[1725972564185,1.86677969,2357.8,2357.5,0.42415]
[1725972564693,1.86677969,2357.8,2357.4,0.42416]
[1725972565188,1.10957969,2357.7,2357.5,0.42415]
[1725972565589,1.86677969,2357.8,2357.5,0.42415]
[1725972566190,1.86677969,2357.8,2357.4,0.42417]
[1725972566191,1.10957969,2357.7,2357.4,0.42417]
[1725972566995,1.10957969,2357.7,2357.2,0.4242]
[1725972567295,1.10957969,2357.6,2357.3,0.42418]
[1725972567494,1.53371969,2357.6,2357.3,0.42418]
[1725972567698,1.48787969,2357.5,2357.3,0.42418]
[1725972567890,1.48787969,2357.5,2357.2,0.42419]
[1725972568194,1.91203969,2357.5,2357.2,0.4242]
[1725972568493,1.48787969,2357.5,2357.0,40.8]
[1725972568702,0.3783,2357.5,2357.1,2.65]
[1725972568893,0.3783,2357.5,2357.3,0.42417]
[1725972571090,0.3783,2357.5,2357.3,0.42418]
[1725972571291,0.3783,2357.5,2357.4,0.42417]
[1725972571491,0.3783,2357.5,2357.1,2.65]
[1725972571697,0.3783,2357.5,2357.4,0.42417]
[1725972572910,0.3783,2357.5,2357.3,0.42418]
[1725972573704,0.3783,2357.5,2357.4,0.42417]
[1725972575086,0.3783,2357.5,2357.2,0.42419]
[1725972575286,0.3783,2357.5,2357.3,0.42417]
[1725972576502,0.3783,2357.5,2357.4,0.42417]
[1725972576695,0.3783,2357.5,2357.3,0.42417]
[1725972577195,0.3783,2357.5,2357.4,0.42417]
[1725972578089,0.3783,2357.5,2357.3,0.42418]
[1725972578291,0.3783,2357.5,2357.4,0.42417]
[1725972578787,0.3783,2357.5,2357.3,0.42418]
[1725972580100,0.3783,2357.5,2357.4,0.42417]
[1725972580499,0.3783,2357.5,2357.0,43.45]
[1725972580706,0.3783,2357.5,2357.3,0.42418]
[1725972580707,1.48787969,2357.5,2357.3,0.42418]
[1725972580999,1.48787969,2357.5,2357.0,43.45]
[1725972581000,1.48787969,2357.5,2357.2,0.42419]
[1725972581198,1.48787969,2357.5,2357.3,0.42419]
[1725972581499,1.48787969,2357.5,2357.4,0.42417]
[1725972581701,0.3783,2357.5,2357.3,0.42417]
[1725972581998,0.3783,2357.5,2357.4,0.42417]
[1725972582200,1.48787969,2357.5,2357.4,0.42417]
[1725972582502,0.3783,2357.5,2357.4,0.42417]
[1725972583201,1.48787969,2357.5,2357.4,0.42417]
[1725972583599,1.48787969,2357.5,2357.0,44.5106]
[1725972583993,1.48787969,2357.5,2357.0,40.8]
[1725972584197,0.42419,2357.3,2357.1,0.42422]
[1725972584395,0.3942,2357.2,2357.1,0.42422]
[1725972585102,0.81841,2357.2,2357.0,0.42423]
[1725972585404,0.3942,2357.2,2357.1,0.42422]
[1725972586296,0.42422,2357.1,2356.9,0.42425]
[1725972586599,0.3725,2357.0,2356.6,3.71078]
[1725972586793,0.3725,2357.0,2356.9,0.42426]
[1725972587394,0.3725,2357.0,2356.8,0.42426]
[1725972588201,0.79674,2357.0,2356.8,0.42426]
[1725972588501,0.3725,2357.0,2356.8,0.42426]
[1725972588805,0.3725,2357.0,2356.9,0.42426]
[1725972589507,1.50377969,2357.2,2357.1,0.42422]
[1725972589804,1.88327969,2357.2,2357.1,0.42422]
[1725972590004,0.7737,2357.2,2357.1,0.42422]
[1725972590196,1.1595,2357.2,2357.1,0.42422]
[1725972590396,1.58371,2357.2,2356.9,0.42425]
[1725972590594,2.26907969,2357.2,2356.6,43.45]
[1725972590903,1.53380969,2357.1,2356.8,0.42427]
[1725972591102,1.10957969,2357.1,2356.8,0.42427]
[1725972591506,1.53380969,2357.1,2356.8,0.42426]
[1725972591804,0.42425,2357.0,2356.8,0.42426]
[1725972592000,0.42425,2357.0,2356.6,43.45]
[1725972592208,1.10957969,2357.1,2356.6,43.45]
[1725972592209,1.53381969,2357.1,2356.6,43.45]
[1725972592506,1.53380969,2357.1,2356.6,44.51078]
[1725972592808,1.10957969,2357.1,2356.9,0.42425]
[1725972593912,1.53379969,2357.1,2356.9,0.42425]
[1725972594111,1.53379969,2357.1,2356.8,0.42427]
[1725972594403,0.42424,2357.0,2356.8,0.42427]
[1725972594705,0.42424,2357.0,2356.6,43.45]
[1725972594706,0.42425,2357.0,2356.7,0.42429]
[1725972594909,0.42425,2357.0,2356.6,43.45]
[1725972595114,1.53382969,2357.0,2356.7,0.42429]
[1725972595299,1.53382969,2357.0,2356.8,0.42428]
[1725972595608,1.53382969,2357.0,2356.7,0.42428]
[1725972595999,1.53382969,2357.0,2356.8,0.42428]
[1725972596912,1.10957969,2357.0,2356.6,43.45]
[1725972597113,1.53382969,2357.0,2356.8,0.42427]
[1725972597407,1.10957969,2356.9,2356.8,0.42427]
[1725972597815,1.53382969,2357.0,2356.8,0.42427]
[1725972598000,1.10957969,2356.9,2356.8,0.42427]
[1725972598401,0.42428,2356.8,2356.7,0.42429]
[1725972598606,0.384,2356.8,2356.7,0.42429]
[1725972599304,0.80828,2356.8,2356.7,0.42429]
[1725972599510,6.50485861,2356.8,2356.6,0.42431]
[1725972599807,1.87680714,2356.7,2356.6,0.42431]
[1725972601707,0.7675,2356.7,2356.6,0.42431]
[1725972601916,1.877066,2356.7,2356.6,0.42431]
[1725972602311,1.87716823,2356.7,2356.6,0.42431]
[1725972603915,1.48536823,2356.7,2356.6,0.42431]
[1725972604310,1.10966823,2356.8,2356.7,0.4243]
[1725972604713,1.10966823,2356.9,2356.8,0.42428]
[1725972605309,2.30187925,2357.0,2356.8,0.42428]
[1725972605511,1.66542277,2356.9,2356.8,0.42428]
[1725972605814,1.66542277,2357.0,2356.7,0.42428]
[1725972606019,1.10955313,2356.8,2356.7,0.42428]
[1725972607213,1.10955313,2356.9,2356.8,0.42428]
[1725972607413,1.10955313,2356.9,2356.8,4.13498]
[1725972607617,1.1593,2357.1,2357.0,0.42424]
[1725972607618,1.10955313,2357.1,2357.0,0.42424]
[1725972607816,1.10955313,2357.2,2357.0,0.66310669]
[1725972608016,1.10955313,2357.3,2357.1,0.42421]
[1725972608319,1.10955313,2357.2,2357.1,0.42421]
[1725972608518,1.66542277,2357.2,2357.1,0.42422]
[1725972608714,2.08961277,2357.3,2357.1,0.42422]
[1725972609623,1.1096432,2357.2,2357.1,0.42422]
[1725972609827,1.66542277,2357.2,2357.1,0.42422]
[1725972610932,1.10970887,2357.2,2357.0,0.42423]
[1725972611131,1.10968878,2357.1,2357.0,0.42423]
[1725972611330,0.42423,2357.1,2356.8,2.65]
[1725972611536,1.10983547,2356.9,2356.6,2.65]
[1725972611733,1.53411547,2356.8,2356.7,0.66317099]
[1725972611938,1.53411547,2356.8,2356.5,4.082]
[1725972611939,2.04652277,2356.8,2356.5,4.082]
[1725972612143,1.11004102,2356.7,2356.6,1.08751849]
[1725972612938,1.53434102,2356.7,2356.6,0.66320849]
[1725972613243,1.53434918,2356.7,2356.4,0.42434]
[1725972613447,1.53434918,2356.7,2356.1,1.10603783]
[1725972613448,1.11004918,2356.6,2356.5,0.42433]
[1725972613631,1.11004918,2356.7,2356.6,0.42431]
[1725972615043,1.11004918,2356.7,2356.5,0.42432]
[1725972615738,1.11004918,2356.7,2356.6,0.42431]
[1725972616049,1.11004918,2356.7,2356.5,0.42432]
[1725972616348,1.11004918,2356.6,2356.4,0.42434]
[1725972618334,1.11004918,2356.6,2356.5,0.42433]
[1725972619931,1.11004918,2356.6,2356.4,0.42433]
[1725972620135,2.08972277,2356.7,2356.5,0.42433]
[1725972620434,1.66542277,2356.6,2356.3,0.42435]
[1725972620631,1.11007169,2356.5,2356.4,0.42435]
[1725972622338,1.53441169,2356.5,2356.3,0.42435]
[1725972622647,0.3955,2356.4,2356.3,0.42435]
[1725972622846,1.11007169,2356.6,2356.5,0.42433]
[1725972623045,1.11007976,2356.7,2356.5,0.66331122]
[1725972623235,1.11007976,2356.7,2356.2,3.97117306]
[1725972623444,1.53442976,2356.4,2356.3,0.66322754]
[1725972623645,0.42438,2356.3,2356.0,4.50642]
[1725972623848,1.1103929,2356.1,2356.0,0.42442]
[1725972624148,1.1103929,2356.1,2355.9,0.42443]
[1725972624344,4.31558936,2356.1,2355.6,1.53052783]
[1725972624654,1.11037644,2355.8,2355.7,1.08793615]
[1725972624840,1.11037644,2355.8,2355.2,1.65905674]
[1725972624841,1.53483644,2355.8,2355.6,40.8]
[1725972625044,0.7724,2355.7,2355.4,0.42452]
[1725972625241,0.7724,2355.7,2355.3,0.35931054]
[1725972625242,1.88295122,2355.7,2355.3,0.35931054]
[1725972625443,4.53295122,2355.7,2355.4,1.08806728]
[1725972625640,1.11055122,2355.6,2355.5,0.42451]
[1725972626049,1.11055122,2355.6,2355.5,1.08802342]
[1725972626243,0.7724,2355.7,2355.6,0.42449]
[1725972626442,0.7724,2355.7,2355.5,3.0745]
[1725972626944,0.7724,2355.7,2355.5,0.4245]
[1725972627645,0.7724,2355.7,2355.6,0.42449]
[1725972627850,1.11055122,2356.1,2355.6,0.66342071]
[1725972628046,1.11055122,2356.1,2355.7,3.31342071]
[1725972628341,1.11055122,2356.1,2355.9,0.42443]
[1725972628751,1.11055122,2356.1,2356.0,0.42442]
[1725972628949,1.11055122,2356.1,2356.0,4.66922]
[1725972629143,1.11055122,2356.1,2356.0,5.33253077]
[1725972629642,1.11055122,2356.1,2356.0,5.33253967]
[1725972629839,3.76055122,2356.1,2356.0,0.66331967]
[1725972630056,3.76055122,2356.1,2355.7,0.42447]
[1725972630246,3.76055122,2356.1,2355.4,4.082]
[1725972630552,0.388,2356.0,2355.7,0.42448]
[1725972631149,0.388,2356.0,2355.9,0.42444]
[1725972631344,1.11055122,2356.1,2356.0,0.42442]
[1725972631551,1.11055122,2356.1,2356.0,1.0878341]
[1725972631851,1.11055122,2356.1,2356.0,4.66842]
[1725972632146,1.11055122,2356.1,2356.0,5.33176196]
[1725972632851,1.11055122,2356.1,2355.9,0.42443]
[1725972633052,1.11055122,2356.1,2356.0,0.66334422]
[1725972633243,1.11055122,2356.1,2356.0,0.42442]
[1725972634351,1.11055122,2356.1,2355.9,0.42443]
[1725972634952,1.11055122,2356.1,2355.4,5.14329]
[1725972635152,1.11055122,2356.1,2355.5,1.72491057]
[1725972635456,1.11055122,2356.1,2355.7,0.42446]
[1725972635656,3.07443,2356.0,2355.6,0.42448]
[1725972635953,4.18498122,2356.0,2355.6,0.42448]
[1725972636141,0.42445,2355.9,2355.5,0.4245]
[1725972636349,3.46707,2355.8,2355.4,0.42452]
[1725972636654,0.81659,2355.7,2355.3,0.42455]
[1725972637449,0.81659,2355.7,2355.2,1.10603783]
[1725972637450,0.4245,2355.6,2355.2,1.10603783]
[1725972637650,2.65,2355.6,2355.2,1.53058783]
[1725972637841,3.07451,2355.6,2355.2,1.10603783]
[1725972638045,0.42451,2355.5,2355.2,1.53059783]
[1725972638250,3.07454,2355.4,2355.2,1.10603783]
[1725972638552,0.3926,2355.3,2355.2,1.53060783]
[1725972638754,0.3926,2355.3,2355.2,1.10603783]
[1725972639742,5.06275,2355.3,2355.2,1.10603783]
[1725972640044,7.71275,2355.3,2355.2,1.10603783]
[1725972640246,0.3926,2355.3,2355.2,1.53060783]
[1725972641142,0.3926,2355.3,2355.2,0.42457]
[1725972641347,0.3926,2355.3,2355.1,0.42457]
[1725972641548,0.3747,2355.2,2355.1,0.42457]
[1725972642253,0.3747,2355.2,2355.0,0.42459]
[1725972642456,0.3747,2355.2,2354.7,6.732]
[1725972642759,0.3747,2355.2,2355.1,0.42458]
[1725972643250,0.3747,2355.2,2355.0,0.42459]
[1725972643755,0.3747,2355.2,2354.9,0.42461]
[1725972643943,3.44927,2355.2,2354.8,0.42463]
[1725972644150,2.65,2355.0,2354.7,0.42465]
[1725972644347,2.65,2354.9,2354.6,0.42466]
[1725972644656,2.65,2354.9,2354.3,4.082]
[1725972644657,0.7658,2354.8,2354.7,0.42466]
[1725972644955,0.7658,2354.8,2354.3,4.082]
[1725972645257,0.7658,2354.8,2354.7,0.42466]
[1725972645654,0.7658,2354.8,2354.6,0.42467]
[1725972645857,0.3652,2354.7,2354.3,4.082]
[1725972646154,3.43986,2354.7,2354.4,0.4247]
[1725972646366,3.43987,2354.7,2354.4,0.4247]
[1725972646544,2.65,2354.5,2353.9,4.082]
[1725972646751,2.65,2354.3,2353.9,4.082]
[1725972646947,2.65,2354.3,2354.1,0.42476]
[1725972646948,0.792,2354.2,2354.1,0.42476]
[1725972647149,0.4036,2354.4,2354.3,0.42473]
[1725972647361,0.792,2354.7,2354.2,1.06186]
[1725972647547,1.1956,2354.7,2354.2,2.65]
[1725972647859,1.1956,2354.7,2354.6,0.42467]
[1725972648061,1.1956,2354.7,2354.5,0.42469]
[1725972648249,2.65,2354.6,2354.4,0.42471]
[1725972648454,2.65,2354.6,2354.3,0.42472]
[1725972648755,2.65,2354.6,2353.8,4.082]
[1725972648756,0.42469,2354.5,2353.8,6.732]
[1725972648958,2.65,2354.5,2353.8,4.082]
[1725972649256,2.65,2354.1,2353.8,0.42482]
[1725972649457,1.1752,2354.0,2353.8,0.42482]
[1725972649660,2.65,2353.9,2353.4,40.8]
[1725972649859,2.65,2353.9,2353.2,4.082]
[1725972650163,2.65,2353.9,2353.2,0.35689566]
[1725972650361,2.65,2353.9,2353.3,40.8]
[1725972650553,2.65,2353.9,2353.6,0.42484]
[1725972650857,2.65,2353.9,2353.3,40.8]
[1725972651064,1.1752,2354.0,2353.3,43.45]
[1725972651250,0.7721,2354.0,2353.6,2.65]
[1725972651454,0.7721,2354.0,2353.9,0.4248]
[1725972652255,0.7721,2354.0,2353.8,0.42481]
[1725972652460,0.7721,2354.0,2353.7,0.42483]
[1725972652762,0.7721,2354.0,2353.7,0.42482]
[1725972653260,0.7721,2354.0,2353.8,0.42481]
[1725972653958,0.7721,2354.0,2353.9,0.4248]
[1725972655658,7.6701,2354.0,2353.3,44.882]
[1725972655868,3.4221,2354.0,2353.6,0.42485]
[1725972656254,3.4221,2354.0,2353.3,43.45]
[1725972656458,3.4221,2354.0,2353.5,0.42486]
[1725972656459,3.84689,2354.0,2353.5,0.42486]
[1725972656667,3.4221,2354.0,2353.5,0.42486]
[1725972656967,2.65,2353.6,2353.0,4.082]
[1725972657162,1.1652,2353.5,2353.3,0.4249]
[1725972657367,0.42491,2353.3,2352.8,0.42499]
[1725972657664,0.42491,2353.3,2352.4,6.923]
[1725972657665,2.65,2353.1,2352.4,2.65]
[1725972657869,2.65,2352.9,2352.0,5.14487]
[1725972658168,0.7899,2353.0,2352.3,3.71273]
[1725972658360,0.7899,2353.0,2352.9,0.42498]
[1725972658556,0.4022,2353.0,2352.9,0.42498]
[1725972659668,0.3978,2353.4,2353.2,0.42491]
[1725972659867,0.4022,2353.3,2353.2,0.42491]
[1725972660264,0.4022,2353.3,2353.2,0.42493]
[1725972660769,0.4022,2353.3,2353.1,0.42493]
[1725972660971,0.4022,2353.3,2352.7,1.06255]
[1725972661171,0.4022,2353.3,2352.7,3.71255]
[1725972661372,0.4022,2353.3,2353.1,0.42494]
[1725972662265,3.0522,2353.3,2352.3,0.20913476]
[1725972662474,2.65,2353.0,2352.6,0.42502]
[1725972662767,0.7677,2352.9,2352.6,0.42503]
[1725972662958,0.385,2352.8,2352.6,0.42503]
[1725972663158,0.385,2352.8,2352.2,2.65]
[1725972663459,3.46,2352.8,2352.3,0.42508]
[1725972663666,2.65,2352.6,2352.1,40.8]
[1725972663866,3.035,2352.8,2352.2,2.65]
[1725972664066,0.385,2352.8,2352.7,0.42502]
[1725972665174,0.385,2352.8,2352.5,0.42504]
[1725972665368,0.385,2352.8,2352.2,2.65]
[1725972665568,0.385,2352.8,2352.6,0.42503]
[1725972665773,0.385,2352.8,2352.1,41.86281]
[1725972665774,3.035,2352.8,2352.1,40.8]
[1725972665967,3.035,2352.8,2352.1,41.86279]
[1725972666172,3.035,2352.8,2352.6,0.42502]
[1725972666372,0.385,2352.8,2352.7,0.42502]
[1725972666571,0.385,2352.8,2352.3,1.06271]
[1725972666768,0.385,2352.8,2352.7,0.42502]
[1725972667773,2.65,2353.3,2353.1,0.42493]
[1725972667774,0.3994,2353.3,2353.1,0.42493]
[1725972668079,0.3697,2353.2,2352.9,0.42498]
[1725972668268,3.0197,2353.2,2352.5,2.65]
[1725972668464,3.0197,2353.2,2352.4,1.06267]
[1725972668465,3.44463,2353.2,2352.8,0.42499]
[1725972668776,0.42495,2353.1,2352.6,0.42502]
[1725972668971,0.42495,2353.1,2352.3,3.71271]
[1725972668972,3.44464,2353.2,2352.4,1.06269]
[1725972669172,0.3936,2353.0,2352.4,1.06269]
[1725972669363,0.3936,2353.0,2352.5,1.06264]
[1725972669562,0.3936,2353.0,2352.9,0.42498]
[1725972669868,0.425,2352.9,2352.3,2.65]
[1725972670073,0.3994,2352.8,2352.5,0.42505]
[1725972670273,0.3927,2352.7,2352.4,0.42506]
[1725972670467,3.0427,2352.7,2352.1,40.8]
[1725972670671,3.46773,2352.7,2352.3,0.42509]
[1725972670868,3.0427,2352.7,2352.4,0.42506]
[1725972671170,0.3927,2352.7,2352.6,0.42504]
[1725972671369,0.3927,2352.7,2352.1,40.8]
[1725972671569,2.65,2352.6,2352.2,0.4251]
[1725972671771,0.3927,2352.7,2352.5,0.42504]
[1725972672170,0.3927,2352.7,2352.4,0.42506]
[1725972672373,0.3927,2352.7,2352.1,40.8]
[1725972672374,0.3927,2352.7,2352.6,0.42504]
[1725972674567,0.3936,2353.0,2352.9,0.42498]
[1725972674770,4.173,2353.5,2352.6,4.2504]
[1725972674771,0.3685,2353.1,2353.0,0.42496]
[1725972674987,0.3685,2353.1,2353.0,3.07496]
[1725972675475,0.3718,2353.5,2353.4,0.42489]
[1725972675667,0.7594,2353.9,2353.7,0.42482]
[1725972675872,0.7594,2353.9,2353.7,0.42483]
[1725972676077,0.7594,2353.9,2353.8,40.8]
[1725972676271,0.7594,2353.9,2353.1,3.26]
[1725972676474,0.7594,2353.9,2353.4,0.42488]
[1725972676777,0.7594,2353.9,2352.8,3.26]
[1725972676778,0.7594,2353.9,2353.7,0.42483]
[1725972676986,0.7594,2353.9,2353.5,40.8]
[1725972677370,4.2488,2353.8,2353.0,0.213]
[1725972677578,4.2488,2353.8,2352.8,0.21100113]
[1725972677579,4.4442,2353.9,2352.8,0.21100113]
[1725972677772,4.0194,2353.9,2352.6,3.82967988]
[1725972677980,5.08143,2353.9,2352.9,41.22498]
[1725972678185,0.4249,2353.4,2352.9,40.8]
[1725972678480,1.1669,2353.3,2352.3,3.473]
[1725972678683,1.1669,2353.3,2352.9,0.42497]
[1725972679186,1.1669,2353.3,2353.1,0.42494]
[1725972679571,1.1669,2353.3,2353.2,0.42493]
[1725972679771,3.68477,2354.1,2353.2,4.2496]
[1725972680087,0.7739,2353.7,2353.4,0.42488]
[1725972680380,0.7739,2353.7,2353.4,0.42489]
[1725972680891,0.7739,2353.7,2353.3,0.4249]
[1725972681187,0.7739,2353.7,2352.8,4.32246]
[1725972681188,0.4032,2353.6,2353.4,0.42489]
[1725972681678,0.4032,2353.6,2353.5,0.42487]
[1725972682074,0.7739,2353.7,2353.6,0.42485]
[1725972682579,0.3898,2354.0,2353.9,0.4248]
[1725972682884,0.7816,2354.0,2353.8,0.4248]
[1725972683282,0.7816,2354.0,2353.6,0.42484]
[1725972683477,0.7816,2354.0,2353.6,0.42485]
[1725972683886,0.7816,2354.0,2353.8,0.42481]
[1725972684075,0.3918,2354.0,2353.9,0.4248]
[1725972684692,4.6398,2354.0,2353.7,0.42482]
[1725972684874,0.3898,2353.9,2353.3,4.082]
[1725972685080,0.3898,2353.9,2353.6,0.42484]
[1725972685683,0.3898,2353.9,2353.7,0.42484]
[1725972685981,0.3898,2353.9,2353.6,0.42485]
[1725972686179,0.3898,2353.9,2353.7,0.42483]
[1725972686381,0.3898,2353.9,2353.3,40.8]
[1725972686382,0.3898,2353.9,2353.6,0.42485]
[1725972686580,0.3898,2353.9,2353.7,0.42484]
[1725972686876,0.3898,2353.9,2353.8,0.42482]
[1725972687086,0.3898,2353.9,2353.7,0.42482]
[1725972687383,0.3898,2353.9,2353.6,0.42484]
[1725972687587,0.3898,2353.9,2353.3,40.8]
[1725972687887,0.3898,2353.9,2353.5,0.42487]
[1725972688288,0.8146,2353.9,2353.5,0.42487]